Cogmind - Beta 13 @@@ ROGUE MODE // 2024.04.07 @ 16:03:14 // Winter2022/Polymind Player: opdo Result: Self-destructed Performance ------------- Evolutions (2) 1000 Regions Visited (6) 1200 Robots Destroyed (10) 50 Value Destroyed (329) 329 Prototype IDs (0) 0 Alien Tech Used (0) 0 Bonus (2609) 2609 TOTAL SCORE: 4918 Bonus ------- Polymind Skill 2370 Follower Combat Kills 39 Entered Garrisons 200 Cogmind --------- Core Integrity 479/550 Matter 185/200 Energy 110/110 System Corruption 0% Temperature Cool (0) Movement Walking (120) Location -8/Garrison Parts ------- > --- POWER (1) -------- Light Nuclear Core > --- PROPULSION (2) --- Carbon-fiber Leg Carbon-fiber Leg > --- UTILITY (1) ------ Targeting Computer > --- WEAPON (2) ------- (None) > --- INVENTORY (1) ---- Gauss Rifle Peak State ------------ > --- POWER ------------ Light Nuclear Core > --- PROPULSION ------- Carbon-fiber Leg Carbon-fiber Leg > --- UTILITY ---------- Targeting Computer > --- WEAPON ----------- Assault Rifle Gauss Rifle > --- INVENTORY -------- (None) [Rating: 15] Favorites ----------- Power Light Nuclear Core Engine Light Ion Engine Power Core Light Nuclear Core Propulsion Compact Wheel Leg Aluminum Leg Wheel Compact Wheel Utility Improved Heat Sink Device Improved Heat Sink Storage Small Storage Unit Processor Targeting Computer Weapon Particle Gun Energy Gun Particle Gun Ballistic Gun Gauss Rifle Build | -11 -10 -10 -10 -9 -8 -8 ------- Run | Yrd Mat Min Exi Min Mat Gar Slots Evolved . | . . . . . . . Power . | . . . . . . . Propulsion . | . . . . . . . Utility . | . . . . . . . Weapon . | . . . . . . . Parts Attached . | . . . . . . . Power . | . . . . . . . Engine . | . . . . . . . Core . | . . . . . . . Reactor . | . . . . . . . Propulsion . | . . . . . . . Treads . | . . . . . . . Leg . | . . . . . . . Wheel . | . . . . . . . Hover . | . . . . . . . Flight . | . . . . . . . Utility . | . . . . . . . Device . | . . . . . . . Storage . | . . . . . . . Processor . | . . . . . . . Hackware . | . . . . . . . Protection . | . . . . . . . Artifact . | . . . . . . . Weapon . | . . . . . . . Energy Gun . | . . . . . . . Energy Cannon . | . . . . . . . Ballistic Gun . | . . . . . . . Ballistic Cannon . | . . . . . . . Launcher . | . . . . . . . Special Weapon . | . . . . . . . Impact Weapon . | . . . . . . . Slashing Weapon . | . . . . . . . Piercing Weapon . | . . . . . . . Special Melee Weapon . | . . . . . . . Unidentified Prototypes . | . . . . . . . Parts Lost 2 | . . . . 2 . . Power . | . . . . . . . Propulsion 1 | . . . . 1 . . Utility . | . . . . . . . Weapon 1 | . . . . 1 . . Highest Loss Streak 2 | . . . . 2 . . To Critical Strikes . | . . . . . . . Average Slot Usage (%) 90 | . 100 100 100 90 60 91 Engine 7 | . 20 20 20 6 . . Core 11 | . . . . 13 20 16 Leg 19 | . . . . 23 20 30 Wheel 14 | . 40 40 40 12 . . Device 16 | . 20 20 20 19 20 3 Storage 7 | . 20 20 20 6 . . Processor 2 | . . . . . . 13 Energy Gun 4 | . . . . 9 . . Ballistic Gun 5 | . . . . . . 26 Naked Turns 13 | . . . . 12 . 1 Heaviest Build 11 | 9 9 9 9 9 6 11 Greatest Support 32 | 32 32 32 32 32 10 30 Greatest Overweight (x) . | . . . . . . . Average Overweight (x) . | . . . . . . . Largest Inventory Capacity 4 | 4 4 4 4 4 1 1 Average Capacity 2 | 3 4 4 4 1 1 . Most Carried 4 | 4 4 4 4 4 1 1 Average Carried 1 | 2 4 4 4 1 1 . Final Capacity 4 | 4 4 4 4 1 1 1 Final Carried 4 | 4 4 4 4 1 1 1 Class Distribution -------------------- 45% | Grunt 36% | Recycler 16% | Hunter Dominant Class ---------------- Recycler | -10/Materials Recycler | -10/Mines Recycler | -10/Exiles Grunt | -9/Mines Grunt | -8/Materials Hunter | -8/Garrison Resources | -11 -10 -10 -10 -9 -8 -8 ----------- Run | Yrd Mat Min Exi Min Mat Gar Matter Collected 133 | . . . . . . 133 Remotely . | . . . . . . . Salvage Created 401 | . . . . 154 . 247 Parts 29 | . . . . 6 . 23 Haulers Intercepted . | . . . . . . . Recyclers Shooed . | . . . . . . . Parts Field Recycled . | . . . . . . . Retrieved Matter . | . . . . . . . Parts Self-Destructed . | . . . . . . . Prevented . | . . . . . . . Kills | -11 -10 -10 -10 -9 -8 -8 ------- Run | Yrd Mat Min Exi Min Mat Gar Combat Hostiles Destroyed 10 | . . . . 3 . 7 Guns 10 | . . . . 3 . 7 Classes Destroyed 6 | . . . . 4 . 2 Tunneler 1 | . . . . 1 . . Recycler 1 | . . . . 1 . . Swarmer 1 | . . . . . . 1 Grunt 2 | . . . . 1 . 1 Sentry 5 | . . . . . . 5 Assembled 2 | . . . . 2 . . Best Kill Streak 5 | . . . . 2 . 5 Combat Bots Only 5 | . . . . 1 . 5 Max Kills in Single Turn 1 | . . . . 1 . 1 Gunslinging . | . . . . . . . Exploded . | . . . . . . . Melee . | . . . . . . . Uniques/NPCs Destroyed . | . . . . . . . Combat | -11 -10 -10 -10 -9 -8 -8 -------- Run | Yrd Mat Min Exi Min Mat Gar Hostile Shots Fired 45 | . . . . 18 . 27 Missed 10 | . . . . 2 . 8 Damage Taken 697 | . . . . 376 . 321 Core 153 | . . . . 82 . 71 Absorbed by Shields . | . . . . . . . Ignored by Resistances 26 | . . . . . . 26 Core Remaining (%) 83 | 100 . . . 67 . . Volleys Fired 41 | . . . . 19 . 22 Largest 2 | . . . . 1 . 2 Hottest 65 | . . . . 65 . 48 Shots Fired 61 | . . . . 19 . 42 Gun 61 | . . . . 19 . 42 Cannon . | . . . . . . . Launcher . | . . . . . . . Special . | . . . . . . . Kinetic 42 | . . . . . . 42 Thermal 19 | . . . . 19 . . Explosive . | . . . . . . . Electromagnetic . | . . . . . . . Robot Hit Streak 12 | . . . . 7 . 12 Robot Miss Streak 4 | . . . . 1 . 4 Penetration Max 1 | . . . . . . 1 Secondary Targets . | . . . . . . . Shots Hit Robots 46 | . . . . 16 . 30 Core Hits 24 | . . . . 11 . 13 Critical Kills . | . . . . . . . Critical Parts Destroyed . | . . . . . . . Critical Strikes . | . . . . . . . Melee Attacks . | . . . . . . . Impact . | . . . . . . . Slashing . | . . . . . . . Piercing . | . . . . . . . Sneak Attacks . | . . . . . . . Combat Hostiles . | . . . . . . . Follow-up Attacks . | . . . . . . . Damage Inflicted 826 | . . . . 258 . 568 Guns 821 | . . . . 253 . 568 Cannons . | . . . . . . . Explosions . | . . . . . . . Melee . | . . . . . . . Ramming 5 | . . . . 5 . . Kinetic 568 | . . . . . . 568 Thermal 253 | . . . . 253 . . Explosive . | . . . . . . . Electromagnetic . | . . . . . . . Impact . | . . . . . . . Slashing . | . . . . . . . Piercing . | . . . . . . . Highest Corruption 3 | . . . . 3 . . Average Corruption 3 | . . . . 3 . . Corruption Purged . | . . . . . . . Corruption Blocked . | . . . . . . . Overload Shots . | . . . . . . . Overflow Damage . | . . . . . . . Projectiles . | . . . . . . . Explosions . | . . . . . . . Melee . | . . . . . . . Knockbacks . | . . . . . . . Impact . | . . . . . . . Kinetic . | . . . . . . . Secondary . | . . . . . . . Self-Inflicted Damage . | . . . . . . . Shots . | . . . . . . . Rammed . | . . . . . . . Targets Rammed 4 | . . . . 4 . . Kicked 4 | . . . . 4 . . Crushed . | . . . . . . . Highest Temperature 28 | . . . . 28 . 26 Average Temperature 13 | . . . . 20 . 11 Received Heat Transfer 203 | . . . . 77 . 126 Siege Activations . | . . . . . . . Robots Corrupted . | . . . . . . . Combat Hostiles . | . . . . . . . Parts Fried . | . . . . . . . Impact Corruptions . | . . . . . . . Robots Melted . | . . . . . . . Combat Hostiles . | . . . . . . . Parts Melted . | . . . . . . . Heat Transferred 592 | . . . . 592 . . Parts Sabotaged . | . . . . . . . Parts Stolen . | . . . . . . . Parts Stripped . | . . . . . . . Power Chain Reactions . | . . . . . . . Alert | -11 -10 -10 -10 -9 -8 -8 ------- Run | Yrd Mat Min Exi Min Mat Gar Peak Influence 255 | . . . . 42 23 255 Initial 24 | . . . . . 8 24 Average 36 | . . . . 16 8 122 Maximum Alert Level 1 | . . . . . . 1 Low Security (%) 91 | 100 100 100 . 100 100 58 Level 1 8 | . . . . . . 41 Level 2 . | . . . . . . . Level 3 . | . . . . . . . Level 4 . | . . . . . . . Level 5 . | . . . . . . . High Security . | . . . . . . . Max Security . | . . . . . . . Squads Dispatched . | . . . . . . . Investigation . | . . . . . . . Extermination . | . . . . . . . Reinforcement . | . . . . . . . Assault . | . . . . . . . Garrison . | . . . . . . . Intercept . | . . . . . . . Searches Triggered . | . . . . . . . Construction Impeded . | . . . . . . . Haulers Reinforced . | . . . . . . . Active Scanning Responses . | . . . . . . . Cargo Convoy Interrupts . | . . . . . . . Stealth | -11 -10 -10 -10 -9 -8 -8 --------- Run | Yrd Mat Min Exi Min Mat Gar Distress Signals . | . . . . . . . Communications Jammed . | . . . . . . . Distress Signals . | . . . . . . . Times Spotted 22 | . . . . 10 . 12 Peak Tracking Total 5 | . . . . 2 . 5 Tactical Retreats 1 | . . . . . . 1 Traps | -11 -10 -10 -10 -9 -8 -8 ------- Run | Yrd Mat Min Exi Min Mat Gar Traps Triggered . | . . . . . . . Indirectly . | . . . . . . . Trap Hack Attempts . | . . . . . . . Triggered . | . . . . . . . Disarmed . | . . . . . . . Reprogrammed . | . . . . . . . Reused . | . . . . . . . Traps Extracted . | . . . . . . . Installed . | . . . . . . . Triggered 1 | . . . . 1 . . Machines | -11 -10 -10 -10 -9 -8 -8 ---------- Run | Yrd Mat Min Exi Min Mat Gar Machines Disabled . | . . . . . . . Max in Single Turn . | . . . . . . . Machines Repaired . | . . . . . . . Machines Dismantled . | . . . . . . . Machines Sabotaged . | . . . . . . . Overloaded Fab Kills . | . . . . . . . Hacking | -11 -10 -10 -10 -9 -8 -8 --------- Run | Yrd Mat Min Exi Min Mat Gar Machines Accessed 5 | . . . . . 3 2 Terminals 4 | . . . . . 2 2 Fabricators . | . . . . . . . Repair Stations . | . . . . . . . Recycling Units . | . . . . . . . Scanalyzers . | . . . . . . . Garrison Access 1 | . . . . . 1 . Total Hacks 11 | . . . . . 6 5 Successful 3 | . . . . . 2 1 Failed 8 | . . . . . 4 4 Catastrophic 2 | . . . . . 2 . Database Lockouts . | . . . . . . . Manual 4 | . . . . . 4 . Terminals 10 | . . . . . 5 5 Fabricators . | . . . . . . . Repair Stations . | . . . . . . . Recycling Units . | . . . . . . . Scanalyzers . | . . . . . . . Garrison Access 1 | . . . . . 1 . Terminal Hacks 1 | . . . . . . 1 Emergency Access Points 1 | . . . . . . 1 Fabricator Hacks . | . . . . . . . Repair Station Hacks . | . . . . . . . Recycling Unit Hacks . | . . . . . . . Scanalyzer . | . . . . . . . Garrison Access Hacks 1 | . . . . . 1 . Unlock Access 1 | . . . . . 1 . Unauthorized Hacks 1 | . . . . . 1 . Terminals 1 | . . . . . 1 . Botnet 1 | . . . . . 1 . Fabricators . | . . . . . . . Repair Stations . | . . . . . . . Recycling Units . | . . . . . . . Scanalyzers . | . . . . . . . Garrison Access . | . . . . . . . Data Cores Recovered . | . . . . . . . Used . | . . . . . . . Hacking Detections 3 | . . . . . 2 1 Full Trace Events . | . . . . . . . Feedback Events . | . . . . . . . Feedback Blocked . | . . . . . . . Robot Schematics Acquired . | . . . . . . . Robots Built . | . . . . . . . Authchips . | . . . . . . . Time . | . . . . . . . Total Robot Build Rating . | . . . . . . . Part Schematics Acquired . | . . . . . . . Parts Built . | . . . . . . . Authchips . | . . . . . . . Time . | . . . . . . . Total Part Build Rating . | . . . . . . . Parts Repaired . | . . . . . . . Time . | . . . . . . . Parts Recycled . | . . . . . . . Recycled Matter . | . . . . . . . Retrieved Matter . | . . . . . . . Retrieved Components . | . . . . . . . Parts Scanalyzed . | . . . . . . . Part Schematics Acquired . | . . . . . . . Parts Damaged . | . . . . . . . Bothacking | -11 -10 -10 -10 -9 -8 -8 ------------ Run | Yrd Mat Min Exi Min Mat Gar Used RIF Installer . | . . . . . . . Robots Hacked 2 | . . . . 1 . 1 Non-combat . | . . . . . . . Combat 2 | . . . . 1 . 1 Robot Hacks Applied 2 | . . . . 1 . 1 find_shortcuts 2 | . . . . 1 . 1 Relay Couplers Released . | . . . . . . . Fabnet Peak Effective % . | . . . . . . . Robots Rewired . | . . . . . . . Allies Hacked . | . . . . . . . Hacks Repelled . | . . . . . . . Allies | -11 -10 -10 -10 -9 -8 -8 -------- Run | Yrd Mat Min Exi Min Mat Gar Total Allies 2 | . . . . 2 . . Largest Group 2 | . . . . 2 . . Highest-Rated Group 45 | . . . . 45 . . Highest-Rated Ally 31 | . . . . 31 . . Total Orders . | . . . . . . . Ally Attacks 13 | . . . . 13 . . Total Damage 148 | . . . . 148 . . Kills 4 | . . . . 4 . . Allies Corrupted . | . . . . . . . Allies Melted . | . . . . . . . Intel | -11 -10 -10 -10 -9 -8 -8 ------- Run | Yrd Mat Min Exi Min Mat Gar Robot Analysis Total 3 | 1 . . . 1 . 1 Derelict Logs Recovered 1 | . . . . 1 . . Drone Launches . | . . . . . . . Drone Recoveries . | . . . . . . . Exploration | -11 -10 -10 -10 -9 -8 -8 ------------- Run | Yrd Mat Min Exi Min Mat Gar Turns Passed 1373 | 43 53 88 130 700 94 265 Spaces Moved 1106 | 45 54 67 131 566 79 164 Core 13 | 12 . . . 1 . . Treads . | . . . . . . . Legs 591 | . . . . 348 79 164 Wheels 502 | 33 54 67 131 217 . . Hover . | . . . . . . . Flight . | . . . . . . . Fastest Speed 50 | 50 100 100 100 50 120 120 Average Speed 110 | 86 100 100 100 112 120 120 Slowest Speed 120 | 100 100 100 100 120 120 120 Overloaded Moves . | . . . . . . . Propulsion Burnouts . | . . . . . . . Robots Hopped . | . . . . . . . Cave-ins Triggered . | . . . . . . . Exploration Rate (%) 32 | 3 14 24 49 92 15 27 Regions Visited 6 Branch Regions 3 Pre-discovered Areas 2 | . . . . 2 . . Known Exits Taken 1 | . . . . . 1 . Unknown Exits Taken 5 | 1 1 1 1 1 . . Scrap Searched 2 | . . . . 2 . . Spaces Dug . | . . . . . . . Terrain Destroyed . | . . . . . . . Melee . | . . . . . . . Projectile . | . . . . . . . AOE . | . . . . . . . Terrain Rammed . | . . . . . . . Walls Destroyed . | . . . . . . . Machines Disabled . | . . . . . . . Actions | -11 -10 -10 -10 -9 -8 -8 --------- Run | Yrd Mat Min Exi Min Mat Gar Total 1198 | 48 53 88 130 611 78 190 Wait 45 | . . 22 . 21 . 2 Move 1100 | 44 53 66 130 565 78 164 Hop . | . . . . . . . Pick Up 6 | 4 . . . 1 . 1 Fast Attach . | . . . . . . . Attach . | . . . . . . . Detach . | . . . . . . . Swap . | . . . . . . . Drop . | . . . . . . . Fire 41 | . . . . 19 . 22 Melee . | . . . . . . . Ram . | . . . . . . . Kick 4 | . . . . 4 . . Crush . | . . . . . . . Escape Stasis . | . . . . . . . Rewire 2 | . . . . 1 . 1 Trap . | . . . . . . . Miscellaneous . | . . . . . . . Route ------- -11/Scrapyard -10/Materials -10/Mines -10/Exiles -9/Mines -8/Materials -8/Garrison History --------- Turn | Location | Event 3 | -11/Scrapyard | Discovered new exit (range 16) 44 | -11/Scrapyard | Entered Materials 70 | -10/Materials | Discovered new exit (range 14) 82 | -10/Materials | Met 8R-AWN 97 | -10/Materials | Entered Mines 101 | -10/Mines | Followed 8R-AWN into the Mines 181 | -10/Mines | Discovered new exit (range 5) 185 | -10/Mines | Entered Exiles 209 | -10/Exiles | Welcomed by 8R-AWN 227 | -10/Exiles | Met EX-HEX 265 | -10/Exiles | Met EX-DEC 300 | -10/Exiles | Discovered new exit (range 14) 315 | -10/Exiles | Entered Mines 316 | -9/Mines | Assembled infested the area 321 | -9/Mines | Assisted by a Guerilla fighting off Assembled 324 | -9/Mines | Met a Derelict bent on vengeance 335 | -9/Mines | Learned location of Storage (-7) 1002 | -9/Mines | Discovered new exit (range 12) 1015 | -9/Mines | Entered Materials 1108 | -8/Materials | Identified exit to Garrison 1109 | -8/Materials | Entered Garrison 1158 | -8/Garrison | Triggered checkpoint 1166 | -8/Garrison | Triggered checkpoint 1356 | -8/Garrison | Triggered checkpoint 1374 | -8/Garrison | Self-destructed Last Messages --------------- 01271_ Acquired 13 Protomatter. 01273_ Acquired 70 matter. 01278_ Connecting with Door Terminal... 01320_ Slug penetrates Wall. 01325_ C-30 ARC bursts open, deploying its payload. 01325_ L-31 Rogue unfolds itself. 01325_ G-47 Trooper unfolds itself. 01326_ Slug penetrates G-47 Trooper. 01332_ S-10 Pest destroyed. 01334_ Critical hit (Burn: +37). 01335_ Slug penetrates G-47 Trooper. 01341_ G-47 Trooper destroyed. 01344_ Slug penetrates Wall. 01348_ Acquired 63 matter. 01365_ Slug penetrates Wall. 01366_ Assault Rifle severed. 01370_ Slug penetrates L-31 Rogue. 01371_ Gauss Rifle severed. 01373_ Acquired Gauss Rifle. Map ----- +----------------------------------------------------+ | ?????????+???????????????????????????????????????? | | ?????????????????????????????????????????????????? | | ?????????????????????#???????????????????????????? | | ????????????????????? ???????????????????????????? | | ????????????????????? ???????????????????????????? | | ????????????????????? ???????????????????????????? | | ?????????????????+??? ???????????????????????????? | | ????????????????????? ???????????????????????????? | | ????????????????????? ???????????????????????????? | | ?????????????????+??# #????#####?????????????????? | | ???????????????????? ???? #?????????????????? | | ???????????????????? ???? #?????????????????? | | ???????????????????? ???? #?????????????????? | | ????#+#?????????#+#?# #????# #??????#####+##+### | | ????# #?????????# #?# #????# #??????# | | ????# #?????????# #?# #????# #??????# | | ????# #?????????# ### ###### #??????# #####+### | | ????# #???###???# + #??????# #???????? | | ###?# #???# #???# ########## #??????# #???????? | | ### #?###"###?# #????????# #??????# #???????? | | ## #?#!!%!!#?# #????????# #??????# +???????? | | [##!#?#!!=!!#?# #????????# ######## #???????? | | =!##[###[!= ### #???????## ## ## #???????? | | !%= *[=+^ + #???????#T ## ## ##??????? | | =###### !!= ### ########## #### #?? | | ####????#// [[#?#[Y=%[% hl+ + #?? | | ????????#//![[#?####### #### ######?? | | ????????###"###???????# #??# ## ## #??????? | | ??????????# #?????????# ##?# ## ## ###????? | | ??????????###?????????# +?" #????? | | ??????????????????????####?" #????? | | ???????????????????????????" #????? | | ???????????????????????????" +????? | | ???????????????????????????# ## ## ###????? | | ???????????????????????????# ## ## #???+??? | | ?????????????????????????? ?????? | | ???????????????????????? ????? | | ????????????????????????#+## ???? | | ???????????????????????????## ##""""##++#####+??? | | ????????????????????????????# ??????????????????? | | ????????????????????????????# ????+??????????????? | | ????????????????????????????# ???????????????????? | | ?????????????????????????????????????????????????? | | ?????????????????????????????????????????????????? | | ?????+???+???????????????+?????+?????????????????? | | ?????????????????????????????????????????????????+ | | ?????????????????????????????????????????????????+ | | ?????????????????????????+???++??????????????????? | | ?????????????????????????????????????????????????? | | ?????????????????????????????????????????????????? | +----------------------------------------------------+ Best States ------------- Heat Dissipation 46 Energy Generation 19 Energy Capacity 110 Matter Stores 200 Matter Capacity 200 Sight Range 16 Terrain Scan Density 10 Resistance: KI 25 Evasion (%) 55 Targeting Accuracy 5 Item Schematics ----------------- None Robot Schematics ------------------ None Fabricated ------------ Nothing Alien Tech Used ----------------- None Achievements -------------- None Challenges ------------ None Polymind | -11 -10 -10 -10 -9 -8 -8 ---------- Run | Yrd Mat Min Exi Min Mat Gar Hosts 3 | 1 . . . 1 . 1 Combat Hostiles 2 | . . . . 1 . 1 Allies . | . . . . . . . Unique Host Classes 3 | 1 . . . 1 . 1 Average Host Suspicion 49 | 5 10 17 . 63 26 72 Unsuspicious Activity 149 | 2 . . . 130 . 17 Returns to Shadow 1 | . . . . 1 . . Fuzzy Dispatches . | . . . . . . . Protomatter Created 234 | . 14 4 . 175 . 41 Used 69 | 5 . . . 30 . 34 Decayed 111 | . 14 . . 97 . . Highest Spend 34 | 5 . . . 30 . 34 Top 5 Hosts by Kills: H-55 Commando (-8/Garrison: 7) G-47 Trooper (-9/Mines: 3) Game ------ Seed MappingPhasingCannon Manual? 0 Play Time 00:10:02 Cumulative 29.6 hours Start 2024.04.07 @ 15:55:05 End 2024.04.07 @ 16:03:14 Sessions 1 Manual Loads 0 Difficulty Rogue Special Mode Winter2022/Polymind Game No. 82 Rogue 80 Adventurer 2 Explorer 0 Win Type - Total 0 Types 0/0/0/0/0/0/0/0/0 Lore% 28 Gallery% 38 Achievement% 32 Wizard Run 0 Options --------- Layout 1 ASCII 0 Keyboard 0 Movement Arrows Keybinds 0 Fullscreen 2 Font 24/Smallcaps Map View 50x35 Zoom Use 0% Tactical HUD 1 Map Filters NONE Filters NONE Steam 1 RUN: 5360b4c4-dd23-444c-9fbe-990f03b0fdc8